Cogmind - Beta 10.2 @@@ ROGUE MODE // 2021.04.04 @ 06:25:34 Player: The Phoenix Tome Result: Destroyed by DAS Turret with DAS Cannon Performance ------------- Evolutions (0) 0 Regions Visited (3) 600 Robots Destroyed (13) 65 Value Destroyed (138) 138 Prototype IDs (23) 460 Alien Tech Used (0) 0 Bonus (285) 285 TOTAL SCORE: 1548 Bonus ------- Aligned with FarCom 300 Friendly Fire -15 Cogmind --------- Core Integrity 0/250 Matter 199/300 Energy 124/125 System Corruption 4% Temperature Cool (0) Movement Rolling (110) Ox1 Location -10/Exiles Parts ------- > --- POWER (1) -------- Light Ion Engine > --- PROPULSION (2) --- Light Treads Compact Wheel > --- UTILITY (2) ------ Small Storage Unit Large Storage Unit > --- WEAPON (2) ------- Light Assault Rifle > --- INVENTORY (12) --- Light Ion Engine Nuclear Core Reinforced Deuterium Engine Reinforced Deuterium Engine Light Treads Aluminum Leg High-capacity Storage Unit High-capacity Storage Unit Sensor Array AWS/Gauss Grenade Launcher Peak State ------------ > --- POWER ------------ Light Ion Engine > --- PROPULSION ------- Light Treads Compact Wheel > --- UTILITY ---------- Small Storage Unit Large Storage Unit > --- WEAPON ----------- Light Assault Rifle Light Assault Rifle > --- INVENTORY -------- Light Ion Engine Nuclear Core Reinforced Deuterium Engine Reinforced Deuterium Engine Light Treads Light Treads Aluminum Leg Aluminum Leg Sensor Array Grenade Launcher Deploy-a-Sentry Deploy-a-Sentry [Rating: 10] Favorites ----------- Power Light Ion Engine Engine Light Ion Engine Propulsion Light Treads Treads Light Treads Leg Aluminum Leg Wheel Compact Wheel Utility Small Storage Unit Storage Small Storage Unit Weapon Light Assault Rifle Energy Gun Medium Laser Ballistic Gun Light Assault Rifle Launcher Grenade Launcher Build | -11 -10 -10 -10 ------- Run | Scr Mat Min Exi Slots Evolved . | . . . . Power . | . . . . Propulsion . | . . . . Utility . | . . . . Weapon . | . . . . Parts Attached 17 | 1 5 10 1 Power 1 | . . 1 . Engine 1 | . . 1 . Core . | . . . . Reactor . | . . . . Propulsion 6 | . 4 1 1 Treads 4 | . 3 1 . Leg . | . . . . Wheel 2 | . 1 . 1 Hover . | . . . . Flight . | . . . . Utility 2 | 1 1 . . Device . | . . . . Storage 2 | 1 1 . . Processor . | . . . . Hackware . | . . . . Protection . | . . . . Artifact . | . . . . Weapon 8 | . . 8 . Energy Gun 2 | . . 2 . Energy Cannon . | . . . . Ballistic Gun 3 | . . 3 . Ballistic Cannon . | . . . . Launcher 3 | . . 3 . Special Weapon . | . . . . Impact Weapon . | . . . . Slashing Weapon . | . . . . Piercing Weapon . | . . . . Special Melee Weapon . | . . . . Unidentified Prototypes . | . . . . Parts Lost 5 | . . 4 1 Power 1 | . . 1 . Propulsion 1 | . . 1 . Utility . | . . . . Weapon 3 | . . 2 1 Highest Loss Streak 2 | . . 2 1 Average Slot Usage (%) 99 | . 100 98 99 Engine 13 | . 14 13 14 Treads 18 | . 13 23 14 Wheel 9 | . 13 3 14 Storage 28 | . 28 28 28 Energy Gun 3 | . 14 1 . Ballistic Gun 23 | . 14 24 27 Naked Turns . | . . . . Heaviest Build 28 | 15 27 28 25 Greatest Support 40 | 20 20 40 16 Greatest Overweight (x) 2 | . 2 2 1 Average Overweight (x) 1 | . 1 . 1 Largest Inventory Capacity 12 | 8 12 12 12 Average Capacity 11 | 6 11 12 12 Most Carried 12 | 6 10 10 12 Average Carried 8 | 6 7 7 10 Final Capacity 12 | 8 12 12 12 Final Carried 12 | 6 10 7 12 Class Distribution -------------------- 100% | Mutant Dominant Class ---------------- Mutant | -10/Materials Mutant | -10/Mines Mutant | -10/Exiles Resources | -11 -10 -10 -10 ----------- Run | Scr Mat Min Exi Matter Collected 535 | 216 104 215 . Remotely . | . . . . Salvage Created 402 | 92 175 135 . Parts 17 | 1 11 5 . Haulers Intercepted 1 | . 1 . . Recyclers Shooed . | . . . . Parts Field Recycled . | . . . . Retrieved Matter . | . . . . Parts Self-Destructed . | . . . . Prevented . | . . . . Kills | -11 -10 -10 -10 ------- Run | Scr Mat Min Exi Combat Hostiles Destroyed 15 | . 7 8 . Guns 10 | . 7 3 . AOE 5 | . . 5 . Classes Destroyed 5 | 1 3 1 . Hauler 1 | . 1 . . Recycler 2 | 1 . 1 . Swarmer 9 | . 6 3 . Grunt 1 | . 1 . . Assembled 5 | . . 5 . Best Kill Streak 4 | 1 3 4 . Combat Bots Only 3 | . 3 3 . Max Kills in Single Turn 2 | 1 1 2 . Gunslinging . | . . . . Exploded 2 | . . 2 . Melee . | . . . . Uniques/NPCs Destroyed . | . . . . Combat | -11 -10 -10 -10 -------- Run | Scr Mat Min Exi Damage Taken 1055 | . 238 437 380 Core 290 | . 59 38 193 Absorbed by Shields . | . . . . Core Remaining (%) 100 | 100 . . . Volleys Fired 58 | 2 18 37 1 Largest 2 | 2 2 2 2 Hottest 70 | 70 70 70 40 Shots Fired 93 | 4 36 51 2 Gun 85 | 4 36 43 2 Cannon . | . . . . Launcher 8 | . . 8 . Special . | . . . . Kinetic 63 | 2 18 41 2 Thermal 22 | 2 18 2 . Explosive 8 | . . 8 . Electromagnetic . | . . . . Robot Hit Streak 8 | 4 8 5 7 Robot Miss Streak 5 | . 3 5 . Penetration Max . | . . . . Secondary Targets 1 | . 1 . . Max Gunslinging Chain 1 | . 1 . . Shots Hit Robots 54 | 4 23 25 2 Core Hits 32 | 2 10 20 . Critical Hits . | . . . . Critical Kills . | . . . . Critical Parts Destroyed . | . . . . Melee Attacks . | . . . . Impact . | . . . . Slashing . | . . . . Piercing . | . . . . Sneak Attacks . | . . . . Combat Hostiles . | . . . . Follow-up Attacks . | . . . . Damage Inflicted 805 | 53 252 485 15 Guns 540 | 53 252 220 15 Cannons . | . . . . Explosions 253 | . . 253 . Melee . | . . . . Ramming 12 | . . 12 . Kinetic 364 | 28 101 220 15 Thermal 176 | 25 151 . . Explosive 253 | . . 253 . Electromagnetic . | . . . . Impact . | . . . . Slashing . | . . . . Piercing . | . . . . Highest Corruption 4 | . . 4 4 Average Corruption 4 | . . 4 4 Corruption Purged . | . . . . Effects 17 | . . 8 9 Message Errors 6 | . . 2 4 Matter Fused 7 | . . 4 3 Heat Flow Errors 2 | . . 1 1 Energy Discharges 1 | . . 1 . Data Loss (minor) 1 | . . . 1 Overload Shots . | . . . . Overflow Damage 5 | . . 5 . Projectiles . | . . . . Explosions 5 | . . 5 . Melee . | . . . . Knockbacks . | . . . . Impact . | . . . . Kinetic . | . . . . Secondary . | . . . . Self-Inflicted Damage 38 | . . 38 . Shots 2 | . . 2 . Rammed 2 | . . 2 . Targets Rammed 2 | . . 2 . Kicked . | . . . . Crushed . | . . . . Highest Temperature 152 | 9 88 152 88 Average Temperature 31 | 6 31 34 48 Received Heat Transfer 98 | . 18 80 . Siege Activations . | . . . . Robots Corrupted . | . . . . Combat Hostiles . | . . . . Parts Fried . | . . . . Impact Corruptions . | . . . . Robots Melted . | . . . . Combat Hostiles . | . . . . Parts Melted 1 | . 1 . . Heat Transferred 518 | 74 444 . . Parts Sabotaged . | . . . . Parts Stolen . | . . . . Parts Stripped . | . . . . Power Chain Reactions . | . . . . Missiles Intercepted . | . . . . Alert | -11 -10 -10 -10 ------- Run | Scr Mat Min Exi Peak Influence 202 | 5 202 173 . Initial 78 | . 3 78 . Average 82 | 4 88 82 . Maximum Alert Level 1 | . 1 . . Low Security (%) 97 | 100 91 100 . Level 1 2 | . 8 . . Level 2 . | . . . . Level 3 . | . . . . Level 4 . | . . . . Level 5 . | . . . . High Security . | . . . . Max Security . | . . . . Squads Dispatched 2 | . 2 . . Investigation 1 | . 1 . . Extermination . | . . . . Reinforcement 1 | . 1 . . Assault . | . . . . Garrison . | . . . . Intercept . | . . . . Construction Impeded . | . . . . Haulers Reinforced . | . . . . Stealth | -11 -10 -10 -10 --------- Run | Scr Mat Min Exi Distress Signals 2 | . 2 . . Communications Jammed . | . . . . Distress Signals . | . . . . Times Spotted 37 | . 10 21 6 Peak Tracking Total 14 | . 4 14 11 Tactical Retreats 3 | . 1 1 1 Traps | -11 -10 -10 -10 ------- Run | Scr Mat Min Exi Traps Triggered 2 | . 2 . . Indirectly . | . . . . Trap Hack Attempts . | . . . . Triggered . | . . . . Disarmed . | . . . . Reprogrammed . | . . . . Reused . | . . . . Traps Extracted . | . . . . Installed . | . . . . Triggered . | . . . . Machines | -11 -10 -10 -10 ---------- Run | Scr Mat Min Exi Machines Disabled . | . . . . Max in Single Turn . | . . . . Machines Sabotaged . | . . . . Garrisons Compromised . | . . . . Overloaded Fab Kills . | . . . . Fab Network Shutdowns . | . . . . Hacking | -11 -10 -10 -10 --------- Run | Scr Mat Min Exi Machines Accessed 4 | . 3 . 1 Terminals 2 | . 2 . . Fabricators . | . . . . Repair Stations . | . . . . Recycling Units 1 | . 1 . . Scanalyzers . | . . . . Garrison Access . | . . . . Total Hacks 8 | . 7 . 1 Successful 2 | . 1 . 1 Failed 6 | . 6 . . Catastrophic 1 | . 1 . . Database Lockouts . | . . . . Manual 4 | . 3 . 1 Terminals 4 | . 4 . . Fabricators . | . . . . Repair Stations . | . . . . Recycling Units 3 | . 3 . . Scanalyzers . | . . . . Garrison Access . | . . . . Terminal Hacks 2 | . 1 . 1 Part Schematic 1 | . 1 . . EX-Prototype ID Bank 1 | . . . 1 Fabricator Hacks . | . . . . Repair Station Hacks . | . . . . Recycling Unit Hacks . | . . . . Scanalyzer . | . . . . Garrison Access Hacks . | . . . . Unauthorized Hacks . | . . . . Terminals . | . . . . Fabricators . | . . . . Repair Stations . | . . . . Recycling Units . | . . . . Scanalyzers . | . . . . Garrison Access . | . . . . Data Cores Recovered . | . . . . Used . | . . . . Hacking Detections 3 | . 3 . . Full Trace Events . | . . . . Feedback Events . | . . . . Feedback Blocked . | . . . . Robot Schematics Acquired . | . . . . Robots Built . | . . . . Matter . | . . . . Time . | . . . . Total Robot Build Rating . | . . . . Part Schematics Acquired 1 | . 1 . . Parts Built . | . . . . Matter . | . . . . Time . | . . . . Total Part Build Rating . | . . . . Parts Repaired . | . . . . Time . | . . . . Parts Recycled . | . . . . Recycled Matter . | . . . . Retrieved Matter . | . . . . Retrieved Components . | . . . . Parts Scanalyzed . | . . . . Part Schematics Acquired . | . . . . Parts Damaged . | . . . . Bothacking | -11 -10 -10 -10 ------------ Run | Scr Mat Min Exi Used RIF Installer . | . . . . Robots Hacked . | . . . . Non-combat . | . . . . Combat . | . . . . Robot Hacks Applied . | . . . . Relay Couplers Released . | . . . . Robots Rewired . | . . . . Allies Hacked . | . . . . Hacks Repelled . | . . . . Allies | -11 -10 -10 -10 -------- Run | Scr Mat Min Exi Total Allies . | . . . . Largest Group . | . . . . Highest-Rated Group . | . . . . Highest-Rated Ally . | . . . . Total Orders . | . . . . Ally Attacks . | . . . . Total Damage . | . . . . Kills . | . . . . Allies Corrupted . | . . . . Allies Melted . | . . . . Intel | -11 -10 -10 -10 ------- Run | Scr Mat Min Exi Robot Analysis Total . | . . . . Derelict Logs Recovered 2 | . . 2 . Drone Launches . | . . . . Drone Recoveries . | . . . . Exploration | -11 -10 -10 -10 ------------- Run | Scr Mat Min Exi Turns Passed 1582 | 21 354 684 523 Spaces Moved 1159 | 12 284 400 463 Core . | . . . . Treads 296 | . . 296 . Legs 20 | 12 8 . . Wheels 843 | . 276 104 463 Hover . | . . . . Flight . | . . . . Fastest Speed 100 | 120 100 100 110 Average Speed 119 | 120 100 145 110 Slowest Speed 180 | 120 120 180 110 Overloaded Moves . | . . . . Propulsion Burnouts . | . . . . Robots Hopped . | . . . . Cave-ins Triggered . | . . . . Exploration Rate (%) 54 | 3 59 67 87 Regions Visited 3 Branch Regions 2 Pre-discovered Areas 1 | . . 1 . Known Exits Taken 1 | . . 1 . Unknown Exits Taken 2 | 1 1 . . Scrap Searched . | . . . . Spaces Dug . | . . . . Terrain Destroyed 56 | . . 56 . Melee . | . . . . Projectile . | . . . . AOE 56 | . . 56 . Terrain Rammed . | . . . . Walls Destroyed . | . . . . Machines Disabled . | . . . . Actions | -11 -10 -10 -10 --------- Run | Scr Mat Min Exi Total 1257 | 14 315 451 477 Wait 3 | . 1 2 . Move 1156 | 11 283 399 463 Hop . | . . . . Pick Up 15 | . 6 1 8 Fast Attach 1 | 1 . . . Attach 5 | . 1 4 . Detach . | . . . . Swap 11 | . 4 6 1 Drop 6 | . 2 . 4 Fire 58 | 2 18 37 1 Melee . | . . . . Ram . | . . . . Kick . | . . . . Crush 2 | . . 2 . Escape Stasis . | . . . . Rewire . | . . . . Trap . | . . . . Miscellaneous . | . . . . Route ------- -11/Scrapyard -10/Materials (discovered 3 exits: [*Mat x2] / [*Min]) -10/Mines (discovered 3 exits: [*Mat x2] / *Exi) -10/Exiles (discovered 1 exit: [*Min]) History --------- Turn | Location | Event 8 | -11/Scrapyard | Discovered new exit (range 3) 22 | -11/Scrapyard | Entered Materials 227 | -10/Materials | Discovered new exit (range 16) 303 | -10/Materials | Discovered new exit (range 5) 304 | -10/Materials | Build established: Mutant 355 | -10/Materials | Discovered new exit (range 13) 376 | -10/Materials | Entered Mines 377 | -10/Mines | Assembled infested the area 382 | -10/Mines | Assisted by a Guerilla fighting off Assembled 390 | -10/Mines | Met a Derelict bent on vengeance 844 | -10/Mines | Discovered new exit (range 10) 871 | -10/Mines | Discovered new exit (range 2) 998 | -10/Mines | Learned location of Storage (-7) 1001 | -10/Mines | Identified exit to Exiles 1054 | -10/Mines | Deemed a non-threat by the Exiles lab entrance 1060 | -10/Mines | Entered Exiles 1096 | -10/Exiles | Discovered new exit (range 14) 1119 | -10/Exiles | Met 8R-AWN 1136 | -10/Exiles | Met EX-HEX 1169 | -10/Exiles | Met EX-BIN 1191 | -10/Exiles | Aligned with FarCom system 1193 | -10/Exiles | Given EX-Vault access code 1221 | -10/Exiles | Opened EX-Vault 1227 | -10/Exiles | Found Deploy-a-Sentry 1229 | -10/Exiles | Found Deploy-a-Sentry 1237 | -10/Exiles | Found AWS/Gauss 1259 | -10/Exiles | Warned to stay clear of 0b10 Research branches 1289 | -10/Exiles | Met EX-DEC 1360 | -10/Exiles | Visited The Gauntlet 1571 | -10/Exiles | Attacked by the Exiles 1576 | -10/Exiles | Core integrity fell below 50% 1582 | -10/Exiles | Core integrity fell below 20% 1583 | -10/Exiles | Destroyed by DAS Turret with DAS Cannon Last Messages --------------- contact via our distributed network. EX-BIN: And don't even think about spreading that code around. We're gonna change it right after you leave. Most certainly not to something like 1234 which I did last time as a little joke and some thief managed to sneak in here and steal a few of HEX's prototypes. EX-DEC: Ah I see we have a visitor. One wrong move in here and I'll invert your atomic chain! 01291_ EX-DEC: "Oops, I hope HEX didn't hear that..." 01306_ System corrupted: Matter fused (-9). 01457_ System corrupted: Component data lost. 01508_ O|Z2TWAH GTK6HXIQF42KKH6&|SFMQ% 01516_ Acquired Hcp. Storage Unit. 01517_ Dropped Aluminum Leg. 01522_ Acquired Hcp. Storage Unit. 01571_ EXILES: Hostile robot within lab perimeter. Defensive protocols time, folks! 01574_ Knocked back. 01577_ Lgt. Assault Rifle destroyed. 01581_ EX-BIN: "I just want to science!" Map ----- +----------------------------------------------------+ | ????#######?????????????????????????#" " | | ????#!!! "#?????????????????????????#" | | ????# "#?????????????????????????#" | | ????# "#?????????????????????????#" | | ???## ""#???????????#######???????#" | | ####" ""#??????????# """#???????#" | | ##" ""???????????#"" """#???????## | | #"" #????????????#"" #????????# | | #????????????#"" #????????#" "X" | | ##???????????#"" "#????????#" """ | | "#???????????# ""#????????#" """""" | | ###?????????#"" ""#???????##" ####### | | ##????????### ###??????##"" #?????? | | "###"" ######???### ###?######"" #?????? | | "#?##" """#####X# #"###""""""" ##????? | | ##??#" """""" " "" ##???# | | ##???#"# "" """ " ##### | | ?????#### " " | | ????????### | | ??????????### | | ????????????## | | ?????????????## | | ??????????????##" | | ???????????????#""" """""" | | ??????????????##" ######""" | | ??????????????#"" @ c ""##????#####""" | | ?????????????##""" """##?????????##""" | | ?????????????#""" """##???????????#"""" | | ?????????????#""" ""#????????????#"" | | ?????????????#"" ########??????"""" | | ?????????????#""" ## ####""? | | ?????????????#""t """" | | ?????????????##"" a | | ??????????????#"""" | | ??????????????## | | ???????????????#" " "" | | ???????????????#"""" ""## ##""" " " | | ???????????????#"" ""###? #???##""" | | ???????????????#" """"##???? #??????#" | | ???????????????#""" """#??????#???????? | | ???????????????## ""##??????????????? | | ????????????????#"" """##???????????????? | | ????????????????##""" ##????????????????? | | ?????????????????##"""" ##?????????????????? | | ??????????????????### #??????????????????? | | ????????????????????##### ##??????????????????? | | ????????????????????????## #???????????????????? | | ?????????????????????????# #???????????????????? | | ?????????????????????????# #???????????????????? | | ?????????????????????????# #???????????????????? | +----------------------------------------------------+ Best States ------------- Heat Dissipation 25 Energy Generation 10 Energy Capacity 125 Matter Stores 300 Matter Capacity 300 Sight Range 16 Terrain Scan Density 10 Evasion (%) 40 Recoil Reduction 2 Item Schematics ----------------- Lrg. Storage Unit | -10/Materials | Hacked Robot Schematics ------------------ None Fabricated ------------ Nothing Alien Tech Used ----------------- None Achievements -------------- None Challenges ------------ None Game ------ Seed HeavyGuidedCoupler Manual? 0 Play Time 00:21:07 Cumulative 45.5 hours Start 2021.04.04 @ 06:05:22 End 2021.04.04 @ 06:25:34 Sessions 1 Manual Loads 0 Difficulty Rogue Special Mode None Game No. 16 Rogue 16 Adventurer 0 Explorer 0 Win Type - Total 0 Types 0/0/0/0/0/0/0/0/0 Lore% 30 Gallery% 38 Achievement% 30 Wizard Run 0 Options --------- ASCII 0 Keyboard 0 Movement Numpad Keybinds 0 Fullscreen 1 Font 20/SmallcapsGlow Map View 66x50 Tactical HUD 1 Map Filters NONE Filters NONE Steam 1 RUN: fca5d43e-3708-44cb-aa23-ae918db5d3d7